fUSD/lending_fUSD_20241009
["ID","MTS","AMOUNT","RATE_DAILY","PERIOD"]
[340094363,1728508264211,-20565.9826088,0.00047091,2]
[340094364,1728508264220,-500.0,0.00047123,120]
[340094365,1728508264230,-500.72,0.00047123,120]
[340094366,1728508264239,-500.0,0.00047123,120]
[340094367,1728508264249,-849.72,0.00047123,120]
[340094368,1728508264261,-500.0,0.00047123,120]
[340094369,1728508264271,-500.0,0.00047123,120]
[340094370,1728508264281,-500.0,0.00047123,120]
[340094371,1728508264290,-663.57,0.00047123,120]
[340094372,1728508264300,-814.86,0.00047123,120]
[340094373,1728508264313,-500.0,0.00047123,2]
[340094374,1728508264323,-500.0,0.00047123,120]
[340094375,1728508264333,-500.0,0.00047123,120]
[340094376,1728508264343,-708.41,0.00047123,120]
[340094377,1728508264353,-500.0,0.00047123,120]
[340094378,1728508264362,-500.0,0.00047123,120]
[340094379,1728508264371,-215.19408129,0.00047123,120]
[340094380,1728508264382,-500.0,0.00047123,120]
[340094381,1728508264392,-500.0,0.00047123,120]
[340094382,1728508264401,-500.0,0.00047123,120]
[340094383,1728508264411,-500.0,0.00047123,120]
[340094384,1728508264420,-500.0,0.00047123,5]
[340094385,1728508264430,-500.0,0.00047123,120]
[340094386,1728508264440,-500.0,0.00047123,120]
[340094387,1728508264450,-500.0,0.00047123,120]
[340094388,1728508264459,-500.0,0.00047123,120]
[340094389,1728508264469,-735.91,0.00047123,120]
[340094390,1728508264479,-571.67,0.00047123,120]
[340094391,1728508264489,-500.0,0.00047123,120]
[340094392,1728508264498,-552.54,0.00047123,120]
[340094393,1728508264512,-500.0,0.00047123,120]
[340094394,1728508264521,-500.0,0.00047123,120]
[340094395,1728508264531,-500.0,0.00047123,7]
[340094396,1728508264541,-500.0,0.00047123,120]
[340094397,1728508264551,-500.0,0.00047123,120]
[340094398,1728508264561,-500.0,0.00047123,120]
[340094399,1728508264570,-500.0,0.00047123,120]
[340094400,1728508264580,-500.0,0.00047123,120]
[340094401,1728508264590,-287.43041198,0.00047123,120]
[340094402,1728508264599,-500.0,0.00047123,120]
[340094403,1728508264609,-577.12,0.00047123,120]
[340094404,1728508264619,-980.22,0.00047123,120]
[340094405,1728508264629,-500.0,0.00047123,120]
[340094406,1728508264639,-500.0,0.00047123,120]
[340094407,1728508264648,-500.0,0.00047123,120]
[340094408,1728508264658,-5774.61475356,0.00047123,2]
[340094409,1728508264667,-1049.76,0.00047123,14]
[340094410,1728508264677,-572.2,0.00047123,120]
[340094411,1728508264687,-500.0,0.00047123,120]
[340094412,1728508264696,-500.0,0.00047123,120]
[340094413,1728508264706,-500.0,0.00047123,120]
[340094414,1728508264717,-500.0,0.00047123,120]
[340094415,1728508264727,-644.01705521,0.00047123,120]
[340094416,1728508264736,-502.62137967,0.00047123,120]
[340094417,1728508264746,-500.0,0.00047123,120]
[340094418,1728508264762,-500.0,0.00047123,120]
[340094419,1728508264772,-500.0,0.00047123,120]
[340094420,1728508264783,-500.0,0.00047123,120]
[340094421,1728508264793,-500.0,0.00047123,120]
[340094422,1728508264802,-371.33856308,0.00047123,120]
[340094423,1728508264813,-555.95,0.00047123,120]
[340094424,1728508264823,-678.96,0.00047123,120]
[340094425,1728508264832,-1330.29,0.00047123,120]
[340094426,1728508264842,-500.0,0.00047123,120]
[340094427,1728508264852,-500.0,0.00047123,120]
[340094428,1728508264862,-500.0,0.00047123,120]
[340094429,1728508264872,-500.0,0.00047123,120]
[340094430,1728508264881,-500.0,0.00047123,120]
[340094431,1728508264891,-500.0,0.00047123,120]
[340094432,1728508264901,-500.0,0.00047123,120]
[340094433,1728508264910,-500.0,0.00047123,120]
[340094434,1728508264920,-500.0,0.00047123,120]
[340094435,1728508264929,-587.475261,0.00047123,120]
[340094436,1728508264939,-500.0,0.00047123,120]
[340094437,1728508264950,-500.0,0.00047123,120]
[340094438,1728508264960,-500.0,0.00047123,120]
[340094439,1728508264970,-220.3785368,0.00047123,120]
[340094440,1728508264979,-500.0,0.00047123,120]
[340094441,1728508264989,-500.0,0.00047123,120]
[340094442,1728508264998,-500.0,0.00047123,120]
[340094443,1728508265011,-500.0,0.00047123,120]
[340094444,1728508265021,-500.0,0.00047123,120]
[340094445,1728508265031,-1042.24,0.00047123,120]
[340094446,1728508265040,-904.97,0.00047123,60]
[340094447,1728508265050,-500.0,0.00047123,120]
[340094448,1728508265061,-1889.78,0.00047123,120]
[340094449,1728508265071,-500.0,0.00047123,120]
[340094450,1728508265081,-900.15,0.00047123,120]
[340094451,1728508265091,-500.0,0.00047123,120]
[340094452,1728508265101,-500.0,0.00047123,120]
[340094453,1728508265191,-500.0,0.00047123,120]
[340094454,1728508265201,-500.0,0.00047123,120]
[340094455,1728508265211,-514.25,0.00047123,120]
[340094456,1728508265220,-500.0,0.00047123,120]
[340094457,1728508265229,-276.82,0.00047123,120]
[340094458,1728508265239,-888.0,0.00047123,120]
[340094459,1728508265248,-1053.89,0.00047123,120]
[340094460,1728508265259,-500.0,0.00047123,120]
[340094461,1728508265269,-546.06,0.00047123,120]
[340094462,1728508265278,-500.0,0.00047123,120]
[340094463,1728508265288,-500.0,0.00047123,120]
[340094464,1728508265297,-500.0,0.00047123,120]
[340094465,1728508265311,-500.0,0.00047123,120]
[340094466,1728508265320,-500.0,0.00047123,120]
[340094467,1728508265329,-500.0,0.00047123,120]
[340094468,1728508265340,-546.68,0.00047123,120]
[340094469,1728508265350,-500.0,0.00047123,120]
[340094470,1728508265359,-500.0,0.00047123,120]
[340094471,1728508265369,-500.0,0.00047123,120]
[340094472,1728508265379,-532.14,0.00047123,120]
[340094473,1728508265389,-500.0,0.00047123,120]
[340094474,1728508265398,-500.0,0.00047123,120]
[340094475,1728508265407,-500.0,0.00047123,120]
[340094476,1728508265417,-500.0,0.00047123,2]
[340094477,1728508265426,-500.0,0.00047123,120]
[340094478,1728508265435,-581.78,0.00047123,120]
[340094479,1728508265444,-1046.81,0.00047123,120]
[340094480,1728508265454,-500.0,0.00047123,120]
[340094481,1728508265463,-500.0,0.00047123,120]
[340094482,1728508265473,-801.96,0.00047123,120]
[340094483,1728508265482,-500.0,0.00047123,120]
[340094484,1728508265491,-500.0,0.00047123,120]
[340094485,1728508265503,-500.0,0.00047123,120]
[340094486,1728508265513,-500.0,0.00047123,120]
[340094487,1728508265523,-500.0,0.00047123,120]
[340094488,1728508265532,-1270.28,0.00047123,120]
[340094489,1728508265542,-500.0,0.00047123,120]
[340094490,1728508265551,-500.0,0.00047123,120]
[340094491,1728508265561,-682.56,0.00047123,120]
[340094492,1728508265570,-719.45,0.00047123,120]
[340094493,1728508265580,-500.0,0.00047123,120]
[340094494,1728508265589,-500.0,0.00047123,120]
[340094495,1728508265599,-500.0,0.00047123,120]
[340094496,1728508265608,-500.0,0.00047123,120]
[340094497,1728508265618,-500.0,0.00047123,120]
[340094498,1728508265627,-500.0,0.00047123,120]
[340094499,1728508265637,-206.512806,0.00047123,14]
[340094500,1728508265647,-500.0,0.00047123,120]
[340094501,1728508265656,-500.0,0.00047123,120]
[340094502,1728508265666,-206.512806,0.00047123,14]
[340094503,1728508265675,-500.0,0.00047123,120]
[340094504,1728508265685,-500.0,0.00047123,120]
[340094505,1728508265694,-2800.01,0.00047123,120]
[340094506,1728508265703,-500.0,0.00047123,120]
[340094507,1728508265712,-500.0,0.00047123,120]
[340094508,1728508265722,-500.0,0.00047123,120]
[340094509,1728508265731,-700.25,0.00047123,120]
[340094510,1728508265740,-500.0,0.00047123,120]
[340094511,1728508265749,-500.0,0.00047123,120]
[340094512,1728508265761,-500.0,0.00047123,120]
[340094513,1728508265777,-500.0,0.00047123,120]
[340094514,1728508265792,-298.81607667,0.00047123,120]
[340094515,1728508265812,-500.0,0.00047123,120]
[340094516,1728508265831,-500.0,0.00047123,120]
[340094517,1728508265850,-500.0,0.00047123,120]
[340094518,1728508265865,-500.0,0.00047123,120]
[340094519,1728508265884,-500.0,0.00047123,120]
[340094520,1728508265898,-518.94,0.00047123,120]
[340094521,1728508265915,-592.26,0.00047123,120]
[340094522,1728508265933,-500.0,0.00047123,120]
[340094523,1728508265952,-614.61,0.00047123,120]
[340094524,1728508265965,-500.0,0.00047123,120]
[340094525,1728508265982,-500.0,0.00047123,120]
[340094526,1728508265999,-500.0,0.00047123,120]
[340094527,1728508266017,-500.0,0.00047123,120]
[340094528,1728508266030,-626.73,0.00047123,120]
[340094529,1728508266046,-500.0,0.00047123,120]
[340094530,1728508266062,-500.0,0.00047123,120]
[340094531,1728508266077,-773.63,0.00047123,120]
[340094532,1728508266093,-500.0,0.00047123,120]
[340094533,1728508266108,-500.0,0.00047123,21]
[340094534,1728508266123,-500.0,0.00047123,120]
[340094535,1728508266138,-1518.3,0.00047123,120]
[340094536,1728508266153,-3179.75,0.00047123,120]
[340094537,1728508266168,-1079.54,0.00047123,120]
[340094538,1728508266182,-165.06,0.00047123,120]
[340094539,1728508266196,-500.0,0.00047123,2]
[340094540,1728508266210,-562.23,0.00047123,120]
[340094541,1728508266224,-500.0,0.00047123,120]
[340094542,1728508266239,-500.0,0.00047123,120]
[340094543,1728508266254,-1390.62,0.00047123,120]
[340094544,1728508266269,-500.0,0.00047123,120]
[340094545,1728508266283,-500.0,0.00047123,120]
[340094546,1728508266298,-500.0,0.00047123,120]
[340094547,1728508266316,-694.52,0.00047123,120]
[340094548,1728508266331,-762.63,0.00047123,120]
[340094549,1728508266345,-500.0,0.00047123,30]
[340094550,1728508266359,-500.0,0.00047123,120]
[340094551,1728508266375,-1182.6,0.00047123,120]
[340094552,1728508266389,-500.0,0.00047123,120]
[340094553,1728508266404,-998.82,0.00047123,120]
[340094554,1728508266419,-500.0,0.00047123,120]
[340094555,1728508266434,-500.0,0.00047123,120]
[340094556,1728508266448,-1757.8,0.00047123,120]
[340094557,1728508266463,-663.9,0.00047123,120]
[340094558,1728508266477,-4247.39,0.00047123,120]
[340094559,1728508266492,-598.46,0.00047123,120]
[340094560,1728508266508,-1812.36,0.00047123,120]
[340094561,1728508266522,-500.0,0.00047123,120]
[340094562,1728508266536,-811.04,0.00047123,120]
[340094563,1728508266551,-500.0,0.00047123,120]
[340094564,1728508266565,-500.0,0.00047123,120]
[340094565,1728508266579,-525.11,0.00047123,120]
[340094566,1728508266593,-17656.44,0.00047123,30]
[340094567,1728508266607,-597.29,0.00047123,120]
[340094568,1728508266621,-500.0,0.00047123,120]
[340094569,1728508266636,-743.68,0.00047123,120]
[340094570,1728508266744,-500.0,0.00047123,120]
[340094571,1728508266765,-527.56,0.00047123,120]
[340094572,1728508266775,-908.41,0.00047123,120]
[340094573,1728508266784,-500.0,0.00047123,120]
[340094574,1728508266794,-500.0,0.00047123,120]
[340094575,1728508266803,-1090.38,0.00047123,120]
[340094576,1728508266813,-500.0,0.00047123,120]
[340094577,1728508266822,-777.71,0.00047123,120]
[340094578,1728508266832,-500.0,0.00047123,120]
[340094579,1728508266841,-1040.09,0.00047123,120]
[340094580,1728508266851,-500.0,0.00047123,120]
[340094581,1728508266860,-418.06157149,0.00047123,120]
[340094582,1728508266869,-500.0,0.00047123,120]
[340094583,1728508266879,-500.0,0.00047123,120]
[340094584,1728508266888,-2019.88,0.00047123,120]
[340094585,1728508266897,-603.81,0.00047123,120]
[340094586,1728508266907,-500.0,0.00047123,120]
[340094587,1728508266916,-500.0,0.00047123,120]
[340094588,1728508266925,-840.33,0.00047123,120]
[340094589,1728508266934,-500.0,0.00047123,120]
[340094590,1728508266943,-2062.69,0.00047123,120]
[340094591,1728508266953,-500.0,0.00047123,120]
[340094592,1728508266962,-1490.13,0.00047123,120]
[340094593,1728508266972,-648.04,0.00047123,120]
[340094594,1728508266981,-500.0,0.00047123,120]
[340094595,1728508266990,-1821.04,0.00047123,120]
[340094596,1728508267000,-500.0,0.00047123,120]
[340094597,1728508267016,-500.0,0.00047123,120]
[340094598,1728508267026,-500.0,0.00047123,120]
[340094599,1728508267035,-500.0,0.00047123,120]
[340094600,1728508267044,-500.0,0.00047123,120]
[340094601,1728508267054,-1109.87,0.00047123,120]
[340094602,1728508267064,-500.0,0.00047123,120]
[340094603,1728508267074,-500.0,0.00047123,120]
[340094604,1728508267083,-500.0,0.00047123,120]
[340094605,1728508267093,-722.12,0.00047123,120]
[340094606,1728508267103,-250.0,0.00047123,120]
[340094607,1728508267112,-814.34,0.00047123,120]
[340094608,1728508267122,-1068.19,0.00047123,120]
[340094609,1728508267132,-500.0,0.00047123,120]
[340094610,1728508267142,-984.53,0.00047123,120]
[340094611,1728508267151,-500.0,0.00047123,120]
[340094612,1728508267162,-538.64,0.00047123,120]
[340094613,1728508267171,-500.0,0.00047123,120]
[340094614,1728508267180,-500.0,0.00047123,120]
[340094615,1728508267190,-500.0,0.00047123,120]
[340094616,1728508267200,-500.0,0.00047123,120]
[340094617,1728508267209,-1109.61,0.00047123,120]
[340094618,1728508267218,-954.46,0.00047123,120]
[340094619,1728508267228,-567.44,0.00047123,120]
[340094620,1728508267237,-4510.44,0.00047123,120]
[340094621,1728508267247,-500.0,0.00047123,120]
[340094622,1728508267260,-500.0,0.00047123,120]
[340094623,1728508267270,-500.0,0.00047123,120]
[340094624,1728508267279,-500.0,0.00047123,120]
[340094625,1728508267289,-500.0,0.00047123,120]
[340094626,1728508267299,-525.38,0.00047123,120]
[340094627,1728508267312,-501.67,0.00047123,120]
[340094628,1728508267321,-500.0,0.00047123,120]
[340094629,1728508267330,-781.88,0.00047123,120]
[340094630,1728508267340,-500.0,0.00047123,120]
[340094631,1728508267351,-3806.99,0.00047123,120]
[340094632,1728508267360,-500.0,0.00047123,120]
[340094633,1728508267369,-477.3135427,0.00047123,120]
[340094634,1728508267379,-500.0,0.00047123,120]
[340094635,1728508267389,-500.0,0.00047123,120]
[340094636,1728508267398,-500.0,0.00047123,120]
[340094637,1728508267408,-889.92,0.00047123,120]
[340094638,1728508267417,-500.0,0.00047123,120]
[340094639,1728508267426,-500.0,0.00047123,120]
[340094640,1728508267435,-500.0,0.00047123,120]
[340094641,1728508267445,-500.0,0.00047123,120]
[340094642,1728508267454,-500.0,0.00047123,120]
[340094643,1728508267464,-500.0,0.00047123,120]
[340094644,1728508267473,-500.0,0.00047123,120]
[340094645,1728508267482,-151.101001,0.00047148,120]
[340094646,1728508267492,-500.0,0.00047156,120]
[340094647,1728508267501,-719.175814,0.00047173,14]
[340094648,1728508267521,-151.0,0.00047173,14]
[340094649,1728508267530,-719.175814,0.00047173,14]
[340094650,1728508267541,-2865.981398,0.00047173,14]
[340094651,1728508267550,-2865.981398,0.00047173,14]
[340094652,1728508267560,-150.0,0.00047173,30]
[340094653,1728508267569,-150.0,0.00047173,30]
[340094654,1728508267578,-2110.0,0.000473,2]
[340094655,1728508267588,-500.0,0.00047397,120]
[340094656,1728508267597,-500.0,0.00047397,120]
[340094657,1728508267606,-500.72,0.00047397,120]
[340094658,1728508267616,-849.72,0.00047397,120]
[340094659,1728508267625,-313.90484896,0.00047397,120]
[340094660,1728508267634,-283.53747114,0.00047397,120]
[340094661,1728508267644,-500.0,0.00047397,120]
[340094662,1728508267653,-663.57,0.00047397,120]
[340094663,1728508267663,-814.86,0.00047397,120]
[340094664,1728508267672,-500.7003501,0.00047397,2]
[340094665,1728508267681,-500.0,0.00047397,120]
[340094666,1728508267691,-500.0,0.00047397,120]
[340094667,1728508267700,-708.41,0.00047397,120]
[340094668,1728508267709,-500.0,0.00047397,120]
[340094669,1728508267719,-500.0,0.00047397,120]
[340094670,1728508267729,-500.0,0.00047397,120]
[340094671,1728508267739,-500.0,0.00047397,120]
[340094672,1728508267748,-500.0,0.00047397,120]
[340094673,1728508267759,-251.37243483,0.00047397,120]
[340094674,1728508267769,-500.0,0.00047397,5]
[340094675,1728508267778,-500.0,0.00047397,120]
[340094676,1728508267788,-151.0,0.00047397,14]
[340094677,1728508267797,-500.0,0.00047397,120]
[340094678,1728508267807,-151.0,0.00047397,14]
[340094679,1728508267816,-500.0,0.00047397,120]
[340094680,1728508267825,-500.0,0.00047397,120]
[340094681,1728508267834,-735.91,0.00047397,120]
[340094682,1728508267844,-571.67,0.00047397,120]
[340094683,1728508267854,-500.0,0.00047397,120]
[340094684,1728508267863,-552.54,0.00047397,120]
[340094685,1728508267873,-500.0,0.00047397,120]
[340094686,1728508267882,-500.0,0.00047397,120]
[340094687,1728508267891,-500.0,0.00047397,7]
[340094688,1728508267900,-500.0,0.00047397,120]
[340094689,1728508267910,-500.0,0.00047397,120]
[340094690,1728508267919,-500.0,0.00047397,120]
[340094691,1728508267929,-500.0,0.00047397,120]
[340094692,1728508267938,-500.0,0.00047397,120]
[340094693,1728508267947,-500.0,0.00047397,120]
[340094694,1728508267956,-577.12,0.00047397,120]
[340094695,1728508267966,-980.22,0.00047397,120]
[340094696,1728508268042,-500.0,0.00047397,120]
[340094697,1728508268057,-499.49950094,0.00047397,120]
[340094698,1728508268067,-642.6298457,0.00047397,120]
[340094699,1728508268076,-1049.76,0.00047397,14]
[340094700,1728508268086,-572.2,0.00047397,120]
[340094701,1728508268095,-500.0,0.00047397,120]
[340094702,1728508268104,-500.0,0.00047397,120]
[340094703,1728508268113,-500.0,0.00047397,120]
[340094704,1728508268123,-500.0,0.00047397,120]
[340094705,1728508268132,-500.0,0.00047397,120]
[340094706,1728508268141,-500.0,0.00047397,120]
[340094707,1728508268150,-500.0,0.00047397,120]
[340094708,1728508268160,-500.0,0.00047397,120]
[340094709,1728508268169,-500.0,0.00047397,120]
[340094710,1728508268178,-555.95,0.00047397,120]
[340094711,1728508268188,-678.96,0.00047397,120]
[340094712,1728508268197,-1330.29,0.00047397,120]
[340094713,1728508268206,-508.62890521,0.00047397,120]
[340094714,1728508268215,-221.08352695,0.00047397,120]
[340094715,1728508268225,-500.0,0.00047397,120]
[340094716,1728508268234,-500.0,0.00047397,120]
[340094717,1728508268243,-461.64294935,0.00047397,120]
[340094718,1728508268252,-500.0,0.00047397,120]
[340094719,1728508268264,-500.0,0.00047397,120]
[340094720,1728508268274,-500.0,0.00047397,120]
[340094721,1728508268283,-500.0,0.00047397,120]
[340094722,1728508268292,-500.0,0.00047397,120]
[340094723,1728508268301,-500.0,0.00047397,120]
[340094724,1728508268313,-500.0,0.00047397,120]
[340094725,1728508268322,-500.0,0.00047397,120]
[340094726,1728508268331,-500.0,0.00047397,120]
[340094727,1728508268340,-500.0,0.00047397,120]
[340094728,1728508268350,-476.66737931,0.00047397,120]
[340094729,1728508268359,-500.0,0.00047397,120]
[340094730,1728508268368,-1042.24,0.00047397,120]
[340094731,1728508268380,-904.97,0.00047397,60]
[340094732,1728508268388,-500.0,0.00047397,120]
[340094733,1728508268397,-1889.78,0.00047397,120]
[340094734,1728508268406,-500.0,0.00047397,120]
[340094735,1728508268415,-900.15,0.00047397,120]
[340094736,1728508268424,-500.0,0.00047397,120]
[340094737,1728508268433,-160.80626276,0.00047397,120]
[340094738,1728508268442,-500.0,0.00047397,120]
[340094739,1728508268452,-500.0,0.00047397,120]
[340094740,1728508268461,-276.82,0.00047397,120]
[340094741,1728508268470,-500.0,0.00047397,120]
[340094742,1728508268481,-514.25,0.00047397,120]
[340094743,1728508268492,-347.10209538,0.00047397,120]
[340094744,1728508268503,-1053.89,0.00047397,120]
[340094745,1728508268514,-500.0,0.00047397,120]
[340094746,1728508268524,-546.06,0.00047397,120]
[340094747,1728508268533,-500.0,0.00047397,120]
[340094748,1728508268542,-500.0,0.00047397,120]
[340094749,1728508268552,-500.0,0.00047397,120]
[340094750,1728508268561,-500.0,0.00047397,120]
[340094751,1728508268570,-500.0,0.00047397,120]
[340094752,1728508268579,-500.0,0.00047397,120]
[340094753,1728508268588,-546.68,0.00047397,120]
[340094754,1728508268597,-500.0,0.00047397,120]
[340094755,1728508268606,-500.0,0.00047397,120]
[340094756,1728508268615,-501.40297789,0.00047397,120]
[340094757,1728508268624,-500.0,0.00047397,120]
[340094758,1728508268634,-532.14,0.00047397,120]
[340094759,1728508268643,-500.0,0.00047397,120]
[340094760,1728508268652,-500.0,0.00047397,120]
[340094761,1728508268661,-500.0,0.00047397,120]
[340094762,1728508268670,-500.0,0.00047397,2]
[340094763,1728508268679,-581.78,0.00047397,120]
[340094764,1728508268688,-1046.81,0.00047397,120]
[340094765,1728508268697,-564.0320515,0.00047397,120]
[340094766,1728508268706,-500.0,0.00047397,120]
[340094767,1728508268715,-801.96,0.00047397,120]
[340094768,1728508268724,-500.0,0.00047397,120]
[340094769,1728508268733,-500.0,0.00047397,120]
[340094770,1728508268742,-165.26072,0.00047397,120]
[340094771,1728508268751,-500.0,0.00047397,120]
[340094772,1728508268763,-290.00929471,0.00047397,120]
[340094773,1728508268772,-1270.28,0.00047397,120]
[340094774,1728508268782,-500.0,0.00047397,120]
[340094775,1728508268791,-500.0,0.00047397,120]
[340094776,1728508268800,-682.56,0.00047397,120]
[340094777,1728508268809,-719.45,0.00047397,120]
[340094778,1728508268818,-500.0,0.00047397,120]
[340094779,1728508268827,-500.0,0.00047397,120]
[340094780,1728508268838,-500.0,0.00047397,120]
[340094781,1728508268847,-500.0,0.00047397,120]
[340094782,1728508268856,-500.0,0.00047397,120]
[340094783,1728508268866,-500.0,0.00047397,120]
[340094784,1728508268875,-570.64497072,0.00047397,120]
[340094785,1728508268884,-500.0,0.00047397,120]
[340094786,1728508268893,-500.0,0.00047397,120]
[340094787,1728508268902,-500.0,0.00047397,120]
[340094788,1728508268911,-2800.01,0.00047397,120]
[340094789,1728508268920,-500.0,0.00047397,120]
[340094790,1728508268930,-500.0,0.00047397,120]
[340094791,1728508268939,-500.0,0.00047397,120]
[340094792,1728508268948,-700.25,0.00047397,120]
[340094793,1728508268957,-472.35980474,0.00047397,120]
[340094794,1728508268967,-500.0,0.00047397,120]
[340094795,1728508268976,-500.0,0.00047397,120]
[340094796,1728508268985,-500.0,0.00047397,120]
[340094797,1728508268994,-500.0,0.00047397,120]
[340094798,1728508269004,-500.0,0.00047397,120]
[340094799,1728508269017,-511.02085652,0.00047397,120]
[340094800,1728508269026,-500.0,0.00047397,120]
[340094801,1728508269035,-500.0,0.00047397,120]
[340094802,1728508269044,-518.94,0.00047397,120]
[340094803,1728508269053,-592.26,0.00047397,120]
[340094804,1728508269063,-500.0,0.00047397,120]
[340094805,1728508269072,-614.61,0.00047397,120]
[340094806,1728508269082,-500.0,0.00047397,120]
[340094807,1728508269091,-500.0,0.00047397,120]
[340094808,1728508269100,-500.0,0.00047397,120]
[340094809,1728508269110,-151.0,0.00047397,14]
[340094810,1728508269119,-209.244496,0.00047397,14]
[340094811,1728508269128,-500.0,0.00047397,120]
[340094812,1728508269138,-209.244496,0.00047397,14]
[340094813,1728508269147,-227.841428,0.00047397,14]
[340094814,1728508269157,-626.73,0.00047397,120]
[340094815,1728508269166,-500.0,0.00047397,120]
[340094816,1728508269176,-500.0,0.00047397,120]
[340094817,1728508269185,-151.0,0.00047397,14]
[340094818,1728508269195,-773.63,0.00047397,120]
[340094819,1728508269204,-500.0,0.00047397,120]
[340094820,1728508269213,-500.0,0.00047397,21]
[340094821,1728508269223,-500.0,0.00047397,120]
[340094822,1728508269233,-1518.3,0.00047397,120]
[340094823,1728508269242,-3179.75,0.00047397,120]
[340094824,1728508269252,-1079.54,0.00047397,120]
[340094825,1728508269264,-500.0,0.00047397,2]
[340094826,1728508269273,-562.23,0.00047397,120]
[340094827,1728508269283,-500.0,0.00047397,120]
[340094828,1728508269292,-500.0,0.00047397,120]
[340094829,1728508269301,-1390.62,0.00047397,120]
[340094830,1728508269314,-500.0,0.00047397,120]
[340094831,1728508269323,-205.44051413,0.00047397,120]
[340094832,1728508269332,-500.0,0.00047397,120]
[340094833,1728508269341,-694.52,0.00047397,120]
[340094834,1728508269352,-762.63,0.00047397,120]
[340094835,1728508269362,-500.0,0.00047397,30]
[340094836,1728508269371,-187.93506602,0.00047397,120]
[340094837,1728508269382,-1182.6,0.00047397,120]
[340094838,1728508269392,-500.0,0.00047397,120]
[340094839,1728508269401,-998.82,0.00047397,120]
[340094840,1728508269410,-500.0,0.00047397,120]
[340094841,1728508269420,-500.0,0.00047397,120]
[340094842,1728508269429,-1757.8,0.00047397,120]
[340094843,1728508269438,-663.9,0.00047397,120]
[340094844,1728508269447,-151.0,0.00047397,14]
[340094845,1728508269456,-4247.39,0.00047397,120]
[340094846,1728508269465,-598.46,0.00047397,120]
[340094847,1728508269474,-1812.36,0.00047397,120]
[340094848,1728508269483,-500.0,0.00047397,120]
[340094849,1728508269493,-811.04,0.00047397,120]
[340094850,1728508269502,-500.0,0.00047397,120]
[340094851,1728508269513,-352.63239908,0.00047397,120]
[340094852,1728508269523,-525.11,0.00047397,120]
[340094853,1728508269532,-17656.44,0.00047397,30]
[340094854,1728508269541,-597.29,0.00047397,120]
[340094855,1728508269550,-500.0,0.00047397,120]
[340094856,1728508269560,-743.68,0.00047397,120]
[340094857,1728508269569,-500.0,0.00047397,120]
[340094858,1728508269578,-527.56,0.00047397,120]
[340094859,1728508269588,-908.41,0.00047397,120]
[340094860,1728508269600,-500.0,0.00047397,120]
[340094861,1728508269611,-500.0,0.00047397,120]
[340094862,1728508269621,-1090.38,0.00047397,120]